fUSD/lending_fUSD_20260521
["ID","MTS","AMOUNT","RATE_DAILY","PERIOD"]
[422713112,1779293292000,500.0,7.634e-05,7]
[422713113,1779293340000,1000.0,0.00028765,120]
[422713135,1779293367000,-608.0,7.928e-05,2]
[422713116,1779293367000,-150.0,6.5e-05,2]
[422713117,1779293367000,-187.0,6.564e-05,2]
[422713118,1779293367000,-295.85578337,6.689e-05,2]
[422713115,1779293367000,-163.99,6.081e-05,2]
[422713119,1779293367000,-200.0,6.689e-05,2]
[422713120,1779293367000,-163.99,7.068e-05,2]
[422713121,1779293367000,-1593.82,7.24e-05,2]
[422713123,1779293367000,-10651.0,7.654e-05,2]
[422713124,1779293367000,-14451.0,7.67e-05,2]
[422713122,1779293367000,-150.62,7.416e-05,2]
[422713137,1779293367000,-16286.92801663,7.942e-05,2]
[422713125,1779293367000,-879.0,7.836e-05,2]
[422713127,1779293367000,-300.0,7.894e-05,2]
[422713128,1779293367000,-300.0,7.894e-05,2]
[422713129,1779293367000,-404.0,7.895e-05,2]
[422713130,1779293367000,-15911.0,7.895e-05,2]
[422713131,1779293367000,-150.0,7.91e-05,2]
[422713134,1779293367000,-13365.0,7.926e-05,2]
[422713133,1779293367000,-13420.0,7.911e-05,2]
[422713132,1779293367000,-254.4227,7.911e-05,2]
[422713136,1779293367000,-348953.3735,7.936e-05,2]
[422713126,1779293367000,-161.0,7.836e-05,2]
[422713141,1779293389000,4000.0,0.0002876,120]
[422713143,1779293423000,-3683.67923764,7.836e-05,2]
[422713142,1779293423000,-250.0,7.584e-05,2]
[422713144,1779293423000,-7643.48399444,7.836e-05,2]
[422713145,1779293423000,-878.07198337,7.942e-05,2]
[422713146,1779293423000,-1200.0,7.957e-05,2]
[422713147,1779293423000,-300.0,7.957e-05,2]
[422713149,1779293423000,-4715.0,7.958e-05,2]
[422713150,1779293423000,-208.63953863,7.958e-05,2]
[422713152,1779293423000,-606.221646,8.178e-05,2]
[422713151,1779293423000,-163.99,8.055e-05,2]
[422713148,1779293423000,-255.0,7.957e-05,2]
[422713156,1779293423000,-1000.0,8.248e-05,2]
[422713162,1779293423000,-2500.0,8.534e-05,2]
[422713153,1779293423000,-480.94689751,8.178e-05,2]
[422713161,1779293423000,-7608.472,8.534e-05,2]
[422713160,1779293423000,-374.58,8.353e-05,2]
[422713158,1779293423000,-586.13605596,8.342e-05,2]
[422713163,1779293423000,-10389.18714645,8.632e-05,2]
[422713154,1779293423000,-6406.5915,8.198e-05,2]
[422713155,1779293423000,-2000.0,8.219e-05,2]
[422713157,1779293423000,-500.0,8.342e-05,2]
[422713159,1779293423000,-250.0,8.342e-05,2]
[422713193,1779293432000,-737.0,0.0001,2]
[422713213,1779293432000,-1087.0,0.00010712,2]
[422713194,1779293432000,-151.0,0.0001,2]
[422713191,1779293432000,-345.0,9.812e-05,2]
[422713197,1779293432000,-673.0,0.00010222,2]
[422713195,1779293432000,-328.8,0.00010027,2]
[422713192,1779293432000,-641.0,9.982e-05,2]
[422713196,1779293432000,-744.0,0.000101,2]
[422713214,1779293432000,-328.8,0.00010779,2]
[422713210,1779293432000,-1033.0,0.00010603,2]
[422713200,1779293432000,-1000.0,0.00010334,2]
[422713216,1779293432000,-500.0,0.00010803,2]
[422713202,1779293432000,-1145.0,0.00010441,2]
[422713221,1779293432000,-2258.10113141,0.000109,2]
[422713222,1779293432000,-2258.10113139,0.000109,2]
[422713207,1779293432000,-500.0,0.00010529,2]
[422713224,1779293432000,-2258.10113139,0.000109,2]
[422713209,1779293432000,-556.0,0.00010555,2]
[422713199,1779293432000,-328.8,0.00010278,2]
[422713218,1779293432000,-1321.0,0.00010833,2]
[422713190,1779293432000,-265.0,9.732e-05,2]
[422713174,1779293432000,-1294.3955938,8.632e-05,2]
[422713189,1779293432000,-333.0,9.644e-05,2]
[422713230,1779293432000,-328.8,0.0001103,2]
[422713170,1779293432000,-3229.88370083,8.617e-05,2]
[422713169,1779293432000,-390.37,8.617e-05,2]
[422713172,1779293432000,-6307.52661264,8.617e-05,2]
[422713171,1779293432000,-822.21968653,8.617e-05,2]
[422713173,1779293432000,-33454.85171785,8.632e-05,2]
[422713176,1779293432000,-274.4762354,8.632e-05,2]
[422713184,1779293432000,-2000.0,9.247e-05,2]
[422713175,1779293432000,-74631.718286,8.632e-05,2]
[422713198,1779293432000,-2000.0,0.00010274,2]
[422713185,1779293432000,-150.61,9.421e-05,2]
[422713187,1779293432000,-378.28942545,9.587e-05,2]
[422713177,1779293432000,-159.0,8.683e-05,2]
[422713179,1779293432000,-201.44549433,8.691e-05,2]
[422713183,1779293432000,-215.20247212,9.045e-05,2]
[422713182,1779293432000,-480.0,8.753e-05,2]
[422713181,1779293432000,-300.0,8.753e-05,2]
[422713178,1779293432000,-177.57196693,8.691e-05,2]
[422713180,1779293432000,-255.0,8.701e-05,2]
[422713188,1779293432000,-9877.49,9.62e-05,2]
[422713186,1779293432000,-150.0,9.571e-05,2]
[422713231,1779293432000,-166.66,0.0001106,2]
[422713205,1779293432000,-328.8,0.00010529,2]
[422713226,1779293432000,-1100.0,0.00010956,2]
[422713260,1779293432000,-374.58,0.00011694,2]
[422713258,1779293432000,-150.0,0.00011554,2]
[422713265,1779293432000,-1456.0,0.00011998,2]
[422713266,1779293432000,-1301.0,0.00012,2]
[422713261,1779293432000,-1168.0,0.00011706,2]
[422713262,1779293432000,-2952.423178,0.00011845,2]
[422713264,1779293432000,-1069.0,0.00011847,2]
[422713267,1779293432000,-509.60489537,0.00012086,2]
[422713263,1779293432000,-544.578759,0.00011845,2]
[422713269,1779293432000,-509.60489537,0.00012086,2]
[422713268,1779293432000,-509.60489537,0.00012086,2]
[422713274,1779293432000,-509.60489537,0.00012086,2]
[422713270,1779293432000,-509.60489537,0.00012086,2]
[422713275,1779293432000,-509.60489537,0.00012086,2]
[422713271,1779293432000,-509.60489537,0.00012086,2]
[422713279,1779293432000,-509.60489537,0.00012086,2]
[422713273,1779293432000,-509.60489537,0.00012086,2]
[422713272,1779293432000,-509.60489537,0.00012086,2]
[422713277,1779293432000,-509.60489537,0.00012086,2]
[422713276,1779293432000,-509.60489537,0.00012086,2]
[422713228,1779293432000,-150.0,0.00010959,2]
[422713259,1779293432000,-1235.0,0.00011663,2]
[422713256,1779293432000,-1321.0,0.00011433,2]
[422713278,1779293432000,-509.60489537,0.00012086,2]
[422713254,1779293432000,-2000.0,0.00011301,2]
[422713238,1779293432000,-225.49,0.00011233,2]
[422713257,1779293432000,-1111.0,0.0001154,2]
[422713237,1779293432000,-1478.0,0.00011226,2]
[422713233,1779293432000,-1212.0,0.00011076,2]
[422713236,1779293432000,-1111.0,0.00011111,2]
[422713239,1779293432000,-2258.10113139,0.00011262,2]
[422713243,1779293432000,-364.65,0.00011281,2]
[422713240,1779293432000,-4999.99,0.00011281,2]
[422713241,1779293432000,-9999.99,0.00011281,2]
[422713245,1779293432000,-999.99,0.00011281,2]
[422713242,1779293432000,-150.99,0.00011281,2]
[422713244,1779293432000,-19999.99,0.00011281,2]
[422713255,1779293432000,-1547.0,0.00011333,2]
[422713250,1779293432000,-2772.18,0.00011281,2]
[422713246,1779293432000,-24999.99,0.00011281,2]
[422713248,1779293432000,-4114.03,0.00011281,2]
[422713253,1779293432000,-16186.53,0.00011281,2]
[422713251,1779293432000,-16017.76,0.00011281,2]
[422713247,1779293432000,-9999.99,0.00011281,2]
[422713249,1779293432000,-166.16,0.00011281,2]
[422713252,1779293432000,-9999.99,0.00011281,2]
[422713307,1779293433000,-509.60489537,0.00012086,2]
[422713326,1779293433000,-3162.80802316,0.00012086,2]
[422713321,1779293433000,-509.60489537,0.00012086,2]
[422713318,1779293433000,-509.60489537,0.00012086,2]
[422713324,1779293433000,-3162.80802316,0.00012086,2]
[422713310,1779293433000,-509.60489537,0.00012086,2]
[422713317,1779293433000,-509.60489537,0.00012086,2]
[422713315,1779293433000,-509.60489537,0.00012086,2]
[422713309,1779293433000,-509.60489537,0.00012086,2]
[422713325,1779293433000,-3162.80802316,0.00012086,2]
[422713314,1779293433000,-509.60489537,0.00012086,2]
[422713316,1779293433000,-509.60489537,0.00012086,2]
[422713319,1779293433000,-509.60489537,0.00012086,2]
[422713330,1779293433000,-3162.80802316,0.00012086,2]
[422713327,1779293433000,-3162.80802316,0.00012086,2]
[422713323,1779293433000,-509.60489537,0.00012086,2]
[422713322,1779293433000,-509.60489537,0.00012086,2]
[422713329,1779293433000,-3162.80802316,0.00012086,2]
[422713328,1779293433000,-3162.80802316,0.00012086,2]
[422713339,1779293433000,-3162.80802316,0.00012086,2]
[422713340,1779293433000,-3162.80802316,0.00012086,2]
[422713332,1779293433000,-3162.80802316,0.00012086,2]
[422713334,1779293433000,-3162.80802316,0.00012086,2]
[422713333,1779293433000,-3162.80802316,0.00012086,2]
[422713331,1779293433000,-3162.80802316,0.00012086,2]
[422713335,1779293433000,-3162.80802316,0.00012086,2]
[422713311,1779293433000,-509.60489537,0.00012086,2]
[422713320,1779293433000,-509.60489537,0.00012086,2]
[422713306,1779293433000,-509.60489537,0.00012086,2]
[422713286,1779293433000,-509.60489537,0.00012086,2]
[422713313,1779293433000,-509.60489537,0.00012086,2]
[422713337,1779293433000,-3162.80802316,0.00012086,2]
[422713281,1779293433000,-509.60489537,0.00012086,2]
[422713282,1779293433000,-509.60489537,0.00012086,2]
[422713280,1779293433000,-509.60489537,0.00012086,2]
[422713283,1779293433000,-509.60489537,0.00012086,2]
[422713284,1779293433000,-509.60489537,0.00012086,2]
[422713285,1779293433000,-509.60489537,0.00012086,2]
[422713289,1779293433000,-509.60489537,0.00012086,2]
[422713288,1779293433000,-509.60489537,0.00012086,2]
[422713290,1779293433000,-509.60489537,0.00012086,2]
[422713287,1779293433000,-509.60489537,0.00012086,2]
[422713291,1779293433000,-509.60489537,0.00012086,2]
[422713298,1779293433000,-509.60489537,0.00012086,2]
[422713295,1779293433000,-509.60489537,0.00012086,2]
[422713302,1779293433000,-509.60489537,0.00012086,2]
[422713297,1779293433000,-509.60489537,0.00012086,2]
[422713296,1779293433000,-509.60489537,0.00012086,2]
[422713293,1779293433000,-509.60489537,0.00012086,2]
[422713299,1779293433000,-509.60489537,0.00012086,2]
[422713294,1779293433000,-509.60489537,0.00012086,2]
[422713300,1779293433000,-509.60489537,0.00012086,2]
[422713292,1779293433000,-509.60489537,0.00012086,2]
[422713301,1779293433000,-509.60489537,0.00012086,2]
[422713304,1779293433000,-509.60489537,0.00012086,2]
[422713312,1779293433000,-509.60489537,0.00012086,2]
[422713303,1779293433000,-509.60489537,0.00012086,2]
[422713305,1779293433000,-509.60489537,0.00012086,2]
[422713308,1779293433000,-509.60489537,0.00012086,2]
[422713338,1779293433000,-3162.80802316,0.00012086,2]
[422713380,1779293433000,-2365.0,0.00012965,2]
[422713342,1779293433000,-3162.80802316,0.00012086,2]
[422713375,1779293433000,-1742.0,0.00012544,2]
[422713373,1779293433000,-200.0,0.00012489,2]
[422713377,1779293433000,-2999.0,0.00012779,2]
[422713372,1779293433000,-1963.0,0.00012488,2]
[422713376,1779293433000,-1845.0,0.00012635,2]
[422713379,1779293433000,-151.0,0.0001289,2]
[422713389,1779293433000,-3541.0,0.00013487,2]
[422713378,1779293433000,-3298.0,0.00012874,2]
[422713383,1779293433000,-1750.0,0.00013177,2]
[422713382,1779293433000,-2258.10113139,0.00013081,2]
[422713381,1779293433000,-1984.0,0.00013065,2]
[422713385,1779293433000,-500.0,0.00013356,2]
[422713386,1779293433000,-700.0,0.00013356,2]
[422713388,1779293433000,-5500.0,0.00013365,2]
[422713387,1779293433000,-1215.0,0.00013365,5]
[422713384,1779293433000,-1254.0,0.00013298,2]
[422713390,1779293433000,-150.0,0.00013488,2]
[422713395,1779293433000,-150.0,0.00013488,2]
[422713396,1779293433000,-150.0,0.00013488,2]
[422713392,1779293433000,-150.0,0.00013488,2]
[422713397,1779293433000,-150.0,0.00013488,2]
[422713394,1779293433000,-150.0,0.00013488,2]
[422713400,1779293433000,-150.0,0.00013527,2]
[422713336,1779293433000,-3162.80802316,0.00012086,2]
[422713391,1779293433000,-150.0,0.00013488,2]
[422713398,1779293433000,-411.80866587,0.000135,2]
[422713399,1779293433000,-1511.0,0.00013527,5]
[422713370,1779293433000,-2000.0,0.00012329,2]
[422713369,1779293433000,-1066.7,0.00012329,2]
[422713393,1779293433000,-150.0,0.00013488,2]
[422713371,1779293433000,-1847.0,0.00012365,2]
[422713374,1779293433000,-220.323255,0.00012522,2]
[422713352,1779293433000,-3162.80802315,0.00012086,2]
[422713353,1779293433000,-3162.80802315,0.00012086,2]
[422713344,1779293433000,-3162.80802316,0.00012086,2]
[422713343,1779293433000,-3162.80802316,0.00012086,2]
[422713341,1779293433000,-3162.80802316,0.00012086,2]
[422713354,1779293433000,-3162.80802315,0.00012086,2]
[422713346,1779293433000,-3162.80802316,0.00012086,2]
[422713348,1779293433000,-3162.80802316,0.00012086,2]
[422713349,1779293433000,-3162.80802316,0.00012086,2]
[422713351,1779293433000,-3162.80802315,0.00012086,2]
[422713350,1779293433000,-3162.80802315,0.00012086,2]
[422713347,1779293433000,-3162.80802316,0.00012086,2]
[422713356,1779293433000,-3162.80802315,0.00012086,2]
[422713345,1779293433000,-3162.80802316,0.00012086,2]
[422713360,1779293433000,-3633.0,0.00012103,2]
[422713364,1779293433000,-927.0,0.00012242,2]
[422713367,1779293433000,-3545.0,0.00012242,2]
[422713366,1779293433000,-625.0,0.00012242,2]
[422713358,1779293433000,-3162.80802312,0.00012086,2]
[422713357,1779293433000,-3162.80802315,0.00012086,2]
[422713363,1779293433000,-1944.0,0.00012223,2]
[422713368,1779293433000,-1224.0,0.00012242,2]
[422713362,1779293433000,-2258.10113139,0.00012172,2]
[422713359,1779293433000,-6058.0,0.00012103,2]
[422713361,1779293433000,-1674.0,0.00012165,2]
[422713355,1779293433000,-3162.80802315,0.00012086,2]
[422713365,1779293433000,-1354.0,0.00012242,2]
[422713428,1779293434000,-151.0,0.00013541,2]
[422713442,1779293434000,-150.0,0.00013645,2]
[422713427,1779293434000,-151.0,0.00013541,2]
[422713426,1779293434000,-151.0,0.00013541,2]
[422713434,1779293434000,-151.0,0.00013541,2]
[422713432,1779293434000,-151.0,0.00013541,2]
[422713431,1779293434000,-151.0,0.00013541,2]
[422713430,1779293434000,-151.0,0.00013541,2]
[422713433,1779293434000,-151.0,0.00013541,2]
[422713439,1779293434000,-9782.9274133,0.00013571,2]
[422713429,1779293434000,-151.0,0.00013541,2]
[422713440,1779293434000,-16652.5872533,0.00013571,2]
[422713448,1779293434000,-500.0,0.00013698,2]
[422713450,1779293434000,-500.0,0.00013698,2]
[422713444,1779293434000,-150.0,0.00013675,2]
[422713445,1779293434000,-150.0,0.00013685,2]
[422713443,1779293434000,-2354.0,0.00013647,2]
[422713446,1779293434000,-500.0,0.00013698,2]
[422713449,1779293434000,-500.0,0.00013698,2]
[422713447,1779293434000,-500.0,0.00013698,2]
[422713454,1779293434000,-500.0,0.00013698,2]
[422713451,1779293434000,-500.0,0.00013698,2]
[422713437,1779293434000,-151.0,0.00013541,2]
[422713452,1779293434000,-500.0,0.00013698,2]
[422713441,1779293434000,-150.0,0.00013606,2]
[422713435,1779293434000,-151.0,0.00013541,2]
[422713411,1779293434000,-151.0,0.00013541,2]
[422713436,1779293434000,-151.0,0.00013541,2]
[422713458,1779293434000,-500.0,0.00013698,2]
[422713401,1779293434000,-2147.0,0.00013537,2]
[422713402,1779293434000,-1798.80895522,0.00013541,2]
[422713404,1779293434000,-151.0,0.00013541,2]
[422713413,1779293434000,-151.0,0.00013541,2]
[422713408,1779293434000,-151.0,0.00013541,2]
[422713410,1779293434000,-151.0,0.00013541,2]
[422713409,1779293434000,-151.0,0.00013541,2]
[422713403,1779293434000,-151.0,0.00013541,2]
[422713406,1779293434000,-151.0,0.00013541,2]
[422713405,1779293434000,-151.0,0.00013541,2]
[422713438,1779293434000,-150.0,0.00013567,2]
[422713407,1779293434000,-151.0,0.00013541,2]
[422713415,1779293434000,-151.0,0.00013541,2]
[422713414,1779293434000,-151.0,0.00013541,2]
[422713417,1779293434000,-151.0,0.00013541,2]
[422713416,1779293434000,-151.0,0.00013541,2]
[422713423,1779293434000,-151.0,0.00013541,2]
[422713419,1779293434000,-151.0,0.00013541,2]
[422713418,1779293434000,-151.0,0.00013541,2]
[422713424,1779293434000,-151.0,0.00013541,2]
[422713420,1779293434000,-151.0,0.00013541,2]
[422713422,1779293434000,-151.0,0.00013541,2]
[422713425,1779293434000,-151.0,0.00013541,2]
[422713412,1779293434000,-151.0,0.00013541,2]
[422713460,1779293434000,-500.0,0.00013698,2]
[422713421,1779293434000,-151.0,0.00013541,2]
[422713456,1779293434000,-500.0,0.00013698,2]
[422713485,1779293434000,-150.0,0.00013843,2]
[422713483,1779293434000,-150.0,0.00013803,2]
[422713486,1779293434000,-2987.0,0.00013848,2]
[422713510,1779293434000,-3102.0,0.00014101,2]
[422713491,1779293434000,-150.0,0.00013921,2]
[422713502,1779293434000,-4125.0,0.00014054,2]
[422713494,1779293434000,-3659.0,0.00013987,2]
[422713496,1779293434000,-2258.10113139,0.00013991,2]
[422713498,1779293434000,-250.0,0.00014,2]
[422713501,1779293434000,-150.0,0.0001405,2]
[422713490,1779293434000,-150.0,0.00013916,2]
[422713492,1779293434000,-150.0,0.00013961,2]
[422713499,1779293434000,-150.0,0.00014,2]
[422713500,1779293434000,-150.0,0.0001404,2]
[422713497,1779293434000,-300.0,0.00014,2]
[422713495,1779293434000,-10920.53524957,0.0001399,2]
[422713493,1779293434000,-166.66,0.00013973,2]
[422713504,1779293434000,-150.0,0.00014087,2]
[422713503,1779293434000,-150.0,0.00014079,2]
[422713505,1779293434000,-150.0,0.00014087,2]
[422713509,1779293434000,-838.0,0.000141,2]
[422713508,1779293434000,-928.0,0.000141,2]
[422713507,1779293434000,-1865.36488657,0.00014089,2]
[422713506,1779293434000,-150.0,0.00014087,2]
[422713511,1779293434000,-166.66,0.0001411,2]
[422713487,1779293434000,-150.0,0.00013862,2]
[422713484,1779293434000,-166.66,0.00013836,2]
[422713453,1779293434000,-500.0,0.00013698,2]
[422713488,1779293434000,-150.0,0.00013882,2]
[422713482,1779293434000,-150.0,0.00013787,2]
[422713455,1779293434000,-500.0,0.00013698,2]
[422713457,1779293434000,-500.0,0.00013698,2]
[422713459,1779293434000,-500.0,0.00013698,2]
[422713463,1779293434000,-500.0,0.00013698,2]
[422713473,1779293434000,-200.0,0.00013748,2]
[422713462,1779293434000,-500.0,0.00013698,2]
[422713468,1779293434000,-2500.0,0.00013699,2]
[422713470,1779293434000,-150.0,0.00013724,2]
[422713465,1779293434000,-500.0,0.00013698,2]
[422713467,1779293434000,-200.0,0.00013699,2]
[422713471,1779293434000,-174.61919141,0.00013748,2]
[422713461,1779293434000,-500.0,0.00013698,2]
[422713464,1779293434000,-500.0,0.00013698,2]
[422713489,1779293434000,-5000.0,0.0001389,2]
[422713469,1779293434000,-150.0,0.00013702,2]
[422713480,1779293434000,-150.0,0.00013787,2]
[422713479,1779293434000,-150.0,0.00013764,2]
[422713478,1779293434000,-2631.0,0.00013755,2]
[422713481,1779293434000,-150.0,0.00013787,2]
[422713477,1779293434000,-277.59766645,0.00013748,2]
[422713476,1779293434000,-578.20924308,0.00013748,2]
[422713474,1779293434000,-1006.41402914,0.00013748,2]
[422713466,1779293434000,-166.66,0.00013699,2]
[422713472,1779293434000,-623.58710448,0.00013748,2]
[422713475,1779293434000,-181.08010149,0.00013748,2]
[422713537,1779293435000,-150.0,0.00014434,2]
[422713550,1779293435000,-4325.0,0.00014632,2]
[422713536,1779293435000,-150.0,0.00014424,2]
[422713535,1779293435000,-2250.0,0.0001441,2]
[422713534,1779293435000,-150.0,0.00014395,2]
[422713541,1779293435000,-305.4815923,0.000145,2]
[422713549,1779293435000,-150.0,0.00014631,2]
[422713540,1779293435000,-150.0,0.00014474,2]
[422713552,1779293435000,-471.36,0.00014635,2]
[422713548,1779293435000,-150.0,0.00014612,2]
[422713542,1779293435000,-150.0,0.00014513,2]
[422713545,1779293435000,-150.0,0.00014558,2]
[422713546,1779293435000,-3200.0,0.00014573,2]
[422713547,1779293435000,-150.0,0.00014592,2]
[422713544,1779293435000,-150.0,0.00014552,2]
[422713554,1779293435000,-150.0,0.00014671,2]
[422713558,1779293435000,-500.0,0.00014686,2]
[422713553,1779293435000,-1934.38338737,0.00014637,2]
[422713532,1779293435000,-150.0,0.00014387,2]
[422713551,1779293435000,-471.37025697,0.00014635,2]
[422713533,1779293435000,-150.0,0.00014387,2]
[422713517,1779293435000,-2211.0,0.00014222,2]
[422713530,1779293435000,-166.66,0.00014384,2]
[422713514,1779293435000,-150.0,0.00014158,2]
[422713512,1779293435000,-150.0,0.00014119,2]
[422713513,1779293435000,-150.0,0.0001413,2]
[422713516,1779293435000,-150.0,0.00014198,2]
[422713515,1779293435000,-152.0,0.00014183,7]
[422713524,1779293435000,-187.78006525,0.00014296,2]
[422713518,1779293435000,-150.0,0.00014237,2]
[422713523,1779293435000,-200.0,0.00014296,2]
[422713522,1779293435000,-181.08010149,0.00014296,2]
[422713538,1779293435000,-1373.159,0.00014462,2]
[422713555,1779293435000,-500.0,0.00014672,2]
[422713526,1779293435000,-150.0,0.00014344,2]
[422713519,1779293435000,-150.0,0.00014237,2]
[422713525,1779293435000,-150.0,0.00014316,2]
[422713520,1779293435000,-166.66,0.00014247,2]
[422713527,1779293435000,-494.04923161,0.00014348,2]
[422713529,1779293435000,-2130.0,0.00014365,2]
[422713539,1779293435000,-158.875,0.00014462,2]
[422713531,1779293435000,-150.0,0.00014387,2]
[422713528,1779293435000,-150.0,0.00014355,2]
[422713521,1779293435000,-150.0,0.00014276,2]
[422713564,1779293435000,-150.0,0.0001471,2]
[422713543,1779293435000,-765.0,0.0001452,2]
[422713559,1779293435000,-164.56,0.00014686,2]
[422713582,1779293435000,-150.0,0.00014907,2]
[422713585,1779293435000,-3546.0,0.00014983,2]
[422713584,1779293435000,-150.0,0.00014947,2]
[422713583,1779293435000,-150.0,0.00014924,2]
[422713587,1779293435000,-150.0,0.00014986,2]
[422713586,1779293435000,-150.0,0.00014986,2]
[422713590,1779293435000,-172.78309105,0.00014986,2]
[422713592,1779293435000,-150.0,0.00014986,2]
[422713599,1779293435000,-2509.82391698,0.00015,2]
[422713577,1779293435000,-150.0,0.00014868,2]
[422713591,1779293435000,-199.11874836,0.00014986,2]
[422713595,1779293435000,-1114190.40278142,0.00015,2]
[422713597,1779293435000,-41102.84011707,0.00015,2]
[422713596,1779293435000,-177458.54007414,0.00015,2]
[422713593,1779293435000,-150.0,0.00014999,2]
[422713598,1779293435000,-475.53514,0.00015,2]
[422713601,1779293435000,-12274.06297079,0.00015,2]
[422713600,1779293435000,-8062.12967767,0.00015,2]
[422713602,1779293435000,-1466.46,0.00015,2]
[422713556,1779293435000,-2182.8661604,0.00014673,2]
[422713594,1779293435000,-300.0,0.00014999,2]
[422713580,1779293435000,-2258.10113139,0.000149,2]
[422713603,1779293435000,-477.78031347,0.00015,2]
[422713578,1779293435000,-200.0,0.0001488,2]
[422713588,1779293435000,-150.0,0.00014986,2]
[422713560,1779293435000,-150.0,0.00014687,2]
[422713561,1779293435000,-150.0,0.00014687,2]
[422713557,1779293435000,-3715.6944607,0.00014673,2]
[422713562,1779293435000,-150.0,0.00014687,2]
[422713566,1779293435000,-150.0,0.0001475,2]
[422713565,1779293435000,-700.0,0.00014726,2]
[422713576,1779293435000,-154.6074,0.0001485,2]
[422713569,1779293435000,-150.0,0.00014799,2]
[422713571,1779293435000,-4216.0,0.0001483,2]
[422713563,1779293435000,-2365.0,0.00014702,2]
[422713568,1779293435000,-150.0,0.00014789,2]
[422713589,1779293435000,-150.0,0.00014986,2]
[422713579,1779293435000,-6077.34440357,0.000149,2]
[422713575,1779293435000,-154.60739,0.0001485,2]
[422713567,1779293435000,-150.0,0.00014772,2]
[422713581,1779293435000,-3497.91984647,0.000149,2]
[422713574,1779293435000,-194.72792766,0.00014844,2]
[422713570,1779293435000,-150.0,0.00014829,2]
[422713572,1779293435000,-187.78006525,0.00014844,2]
[422713573,1779293435000,-200.0,0.00014844,2]
[422713607,1779293438000,-949.57432778,0.00015,2]
[422713606,1779293438000,-304.0,0.00015,2]
[422713604,1779293438000,-151.0,0.00012086,2]
[422713605,1779293438000,-981.42829031,0.00015,2]
[422713608,1779293438000,-466.92,0.00015,2]
[422713619,1779293440000,-891.9241332,0.00015,2]
[422713618,1779293440000,-6112.28413678,0.00015,2]
[422713620,1779293441000,-63245.80328468,0.00015,2]
[422713629,1779293443000,-327.365286,0.00015,2]
[422713639,1779293446000,-418.0,0.00012809,2]
[422713640,1779293446000,-52604.89561042,0.00015,2]
[422713642,1779293446000,-6516.16760606,0.00015,2]
[422713641,1779293446000,-403.23446449,0.00015,2]
[422713643,1779293447000,-439331.36360009,0.00015,2]
[422713676,1779293510000,-139573.20524958,7.936e-05,2]
[422713675,1779293510000,-426.79475042,7.836e-05,2]
[422713678,1779294002000,-150.62,6.968e-05,2]
[422713679,1779294002000,-49.38,7.414e-05,2]
[422713683,1779294005000,-148.14,7.935e-05,2]
[422713682,1779294005000,-51.86,7.861e-05,2]
[422713680,1779294005000,-101.24,7.414e-05,2]
[422713681,1779294005000,-98.76,7.861e-05,2]
[422713687,1779294006000,-200.0,7.935e-05,2]
[422713686,1779294006000,-200.0,7.935e-05,2]
[422713685,1779294006000,-76.14,7.935e-05,2]
[422713684,1779294006000,-123.86,7.935e-05,2]
[422713688,1779294007000,-200.0,7.935e-05,2]
[422713690,1779294007000,-200.0,7.935e-05,2]
[422713689,1779294007000,-200.0,7.935e-05,2]
[422713694,1779294008000,-200.0,7.936e-05,2]
[422713692,1779294008000,-76.14,7.936e-05,2]
[422713691,1779294008000,-123.86,7.935e-05,2]
[422713693,1779294008000,-200.0,7.936e-05,2]
[422713697,1779294009000,-200.0,7.936e-05,2]
[422713696,1779294009000,-200.0,7.936e-05,2]